[Event "*** SCC Grand Prix: Titled Tuesday Blitz"]
[Site "Chess.com"]
[Date "2020.07.14"]
[Round "6"]
[White "MVM2008"]
[Black "romulocardoso"]
[Result "0-1"]
[WhiteElo "2220"]
[BlackElo "2106"]
[TimeControl "180+1"]
[EndTime "11:07:12 PDT"]
[Termination "romulocardoso won by resignation"]

1. e4 {[%clk 0:03:00.9]} 1... c5 {[%clk 0:02:57.8]} 2. Nf3 {[%clk 0:03:00.8]}
2... d6 {[%clk 0:02:58.2]} 3. d4 {[%clk 0:03:00.2]} 3... cxd4 {[%clk 0:02:59.1]}
4. Nxd4 {[%clk 0:03:01.1]} 4... Nf6 {[%clk 0:02:58.2]} 5. Nc3 {[%clk 0:03:01.5]}
5... g6 {[%clk 0:02:57.2]} 6. f3 {[%clk 0:02:59.9]} 6... Bg7 {[%clk 0:02:57.7]}
7. Be3 {[%clk 0:03:00.2]} 7... O-O {[%clk 0:02:58.2]} 8. Bc4 {[%clk 0:03:00]}
8... Nc6 {[%clk 0:02:58.8]} 9. Bb3 {[%clk 0:03:00.2]} 9... Bd7 {[%clk
0:02:57.6]} 10. Qd2 {[%clk 0:03:00.2]} 10... Rc8 {[%clk 0:02:58.1]} 11. O-O-O
{[%clk 0:03:00]} 11... Ne5 {[%clk 0:02:58.6]} 12. h4 {[%clk 0:03:00.3]} 12... h5
{[%clk 0:02:56.5]} 13. Bh6 {[%clk 0:02:35.6]} 13... Rxc3 {[%clk 0:02:54.7]} 14.
Bxg7 {[%clk 0:02:28.9]} 14... Rxc2+ {[%clk 0:02:39.6]} 15. Nxc2 {[%clk
0:02:18.6]} 15... Kxg7 {[%clk 0:02:40.5]} 16. Kb1 {[%clk 0:02:07.3]} 16... a5
{[%clk 0:02:37.9]} 17. Nd4 {[%clk 0:01:59]} 17... a4 {[%clk 0:02:36.1]} 18. Bc2
{[%clk 0:01:56.8]} 18... Qb6 {[%clk 0:02:27.2]} 19. g4 {[%clk 0:01:35.3]} 19...
Rc8 {[%clk 0:02:14.5]} 20. g5 {[%clk 0:01:29.5]} 20... Ne8 {[%clk 0:02:10]} 21.
b3 {[%clk 0:01:07.3]} 21... Nc4 {[%clk 0:02:08.2]} 22. Qc1 {[%clk 0:01:01.2]}
22... axb3 {[%clk 0:02:01.2]} 23. Bxb3 {[%clk 0:00:55.3]} 23... Na5 {[%clk
0:02:00.7]} 24. Qb2 {[%clk 0:00:49.9]} 24... e5 {[%clk 0:02:01.2]} 25. Nc2
{[%clk 0:00:37]} 25... Rc5 {[%clk 0:02:00.7]} 26. Rd5 {[%clk 0:00:33.1]} 26...
Nxb3 {[%clk 0:01:45.4]} 27. Qxb3 {[%clk 0:00:29.7]} 27... Qxb3+ {[%clk
0:01:41.2]} 28. axb3 {[%clk 0:00:28.6]} 28... Rc3 {[%clk 0:01:42.1]} 29. Kb2
{[%clk 0:00:18.9]} 29... Rxf3 {[%clk 0:01:42.1]} 30. Nb4 {[%clk 0:00:10.6]}
30... Be6 {[%clk 0:01:41.3]} 31. Rd3 {[%clk 0:00:10.7]} 31... Rf4 {[%clk
0:01:36.5]} 32. Re1 {[%clk 0:00:09.9]} 32... Rxh4 {[%clk 0:01:34.3]} 33. Nd5
{[%clk 0:00:09.3]} 33... Rg4 {[%clk 0:01:31.9]} 34. Nf6 {[%clk 0:00:03.2]} 34...
Nxf6 {[%clk 0:01:31.5]} 35. gxf6+ {[%clk 0:00:04.1]} 35... Kxf6 {[%clk
0:01:32.4]} 36. Rxd6 {[%clk 0:00:04.5]} 36... Ke7 {[%clk 0:01:30.9]} 37. Rb6
{[%clk 0:00:04.3]} 37... h4 {[%clk 0:01:30]} 38. Rxb7+ {[%clk 0:00:04.6]} 38...
Kf6 {[%clk 0:01:30.6]} 39. Rf1+ {[%clk 0:00:03.3]} 39... Kg5 {[%clk 0:01:29.8]}
40. Rb4 {[%clk 0:00:02.6]} 40... h3 {[%clk 0:01:30.3]} 41. Rh1 {[%clk
0:00:01.7]} 41... Rg2+ {[%clk 0:01:30.8]} 42. Ka3 {[%clk 0:00:01.9]} 42... h2
{[%clk 0:01:31.7]} 43. Rc4 {[%clk 0:00:02.3]} 43... Bg4 {[%clk 0:01:31.3]} 44.
Rcc1 {[%clk 0:00:03.2]} 44... Bf3 {[%clk 0:01:31.3]} 45. Rcf1 {[%clk 0:00:03.4]}
45... Bxe4 {[%clk 0:01:30.9]} 46. b4 {[%clk 0:00:02.7]} 46... Rg3+ {[%clk
0:01:28.2]} 47. Ka4 {[%clk 0:00:02.6]} 47... Bxh1 {[%clk 0:01:26.8]} 48. Rxh1
{[%clk 0:00:03.5]} 48... Rg2 {[%clk 0:01:27.2]} 49. b5 {[%clk 0:00:04.3]} 49...
e4 {[%clk 0:01:27.8]} 50. b6 {[%clk 0:00:04.6]} 50... Rb2 {[%clk 0:01:27.5]} 51.
Ka5 {[%clk 0:00:04.6]} 51... f5 {[%clk 0:01:27]} 52. Ka6 {[%clk 0:00:04.6]}
52... Kg4 {[%clk 0:01:27.5]} 53. b7 {[%clk 0:00:04.8]} 53... Kh3 {[%clk
0:01:28]} 54. Ka7 {[%clk 0:00:03.8]} 54... Kg2 {[%clk 0:01:28.1]} 55. Rc1 {[%clk
0:00:01.4]} 55... h1=Q {[%clk 0:01:27.7]} 56. Rc2+ {[%clk 0:00:02]} 56... Rxc2
{[%clk 0:01:28]} 57. b8=Q {[%clk 0:00:02.4]} 57... Qa1+ {[%clk 0:01:28.5]} 58.
Kb7 {[%clk 0:00:02.9]} 58... Rb2+ {[%clk 0:01:29]} 59. Kc6 {[%clk 0:00:03.5]}
59... Qc1+ {[%clk 0:01:29.9]} 60. Kd5 {[%clk 0:00:03.4]} 60... Rxb8 {[%clk
0:01:30.1]} 0-1

[Event "*** SCC Grand Prix: Titled Tuesday Blitz"]
[Site "Chess.com"]
[Date "2020.07.14"]
[Round "6"]
[White "CzechmVIII"]
[Black "Forantes"]
[Result "0-1"]
[WhiteElo "2195"]
[BlackElo "2366"]
[TimeControl "180+1"]
[EndTime "11:07:13 PDT"]
[Termination "Forantes won by resignation"]

1. e4 {[%clk 0:03:00.9]} 1... c5 {[%clk 0:02:59.7]} 2. Nf3 {[%clk 0:03:00.6]}
2... Nc6 {[%clk 0:03:00]} 3. Nc3 {[%clk 0:03:00.5]} 3... g6 {[%clk 0:02:58.9]}
4. d4 {[%clk 0:03:00.4]} 4... cxd4 {[%clk 0:02:58.8]} 5. Nxd4 {[%clk 0:03:01.1]}
5... Bg7 {[%clk 0:02:59.7]} 6. Be3 {[%clk 0:03:01.1]} 6... d6 {[%clk 0:02:57.5]}
7. Qd2 {[%clk 0:02:57.9]} 7... Nf6 {[%clk 0:02:55]} 8. f3 {[%clk 0:02:58.1]}
8... d5 {[%clk 0:02:50.3]} 9. Nxc6 {[%clk 0:02:30.2]} 9... bxc6 {[%clk
0:02:51.2]} 10. exd5 {[%clk 0:02:29.9]} 10... cxd5 {[%clk 0:02:22.4]} 11. Bb5+
{[%clk 0:02:22.3]} 11... Bd7 {[%clk 0:02:22.7]} 12. O-O-O {[%clk 0:01:54.3]}
12... Bxb5 {[%clk 0:01:47.9]} 13. Nxb5 {[%clk 0:01:54.2]} 13... Qb8 {[%clk
0:01:48.5]} 14. Qa5 {[%clk 0:01:28]} 14... O-O {[%clk 0:01:19.7]} 15. Rhe1
{[%clk 0:01:21.9]} 15... Rc8 {[%clk 0:01:17.7]} 16. Bd4 {[%clk 0:01:17.2]} 16...
Qxh2 {[%clk 0:01:17.3]} 17. Rxe7 {[%clk 0:01:08.3]} 17... Qxg2 {[%clk
0:01:13.8]} 18. Nc3 {[%clk 0:00:49.9]} 18... Qxf3 {[%clk 0:01:01.5]} 19. Ree1
{[%clk 0:00:36.2]} 19... Qf4+ {[%clk 0:00:40.2]} 20. Kb1 {[%clk 0:00:35.3]}
20... Qc7 {[%clk 0:00:32.6]} 21. Qxc7 {[%clk 0:00:34.3]} 21... Rxc7 {[%clk
0:00:32.8]} 22. Bxf6 {[%clk 0:00:34.6]} 22... Bxf6 {[%clk 0:00:33.1]} 23. Nxd5
{[%clk 0:00:34.9]} 23... Rc6 {[%clk 0:00:33.2]} 24. Ne7+ {[%clk 0:00:31.8]}
24... Bxe7 {[%clk 0:00:32.9]} 25. Rxe7 {[%clk 0:00:32.7]} 25... Rf6 {[%clk
0:00:32.8]} 26. b3 {[%clk 0:00:27.3]} 26... h5 {[%clk 0:00:32.7]} 27. Rd4 {[%clk
0:00:23.4]} 27... g5 {[%clk 0:00:30.9]} 28. Rd5 {[%clk 0:00:21.3]} 28... Rg6
{[%clk 0:00:30.7]} 29. Ree5 {[%clk 0:00:21.5]} 29... f6 {[%clk 0:00:26.3]} 30.
Re7 {[%clk 0:00:21.7]} 30... h4 {[%clk 0:00:23.8]} 31. Rdd7 {[%clk 0:00:17.1]}
31... g4 {[%clk 0:00:22.6]} 32. Rh7 {[%clk 0:00:16.9]} 32... h3 {[%clk
0:00:22.5]} 33. Kb2 {[%clk 0:00:14.2]} 33... g3 {[%clk 0:00:20.6]} 34. Rxh3
{[%clk 0:00:13.5]} 34... g2 {[%clk 0:00:21.1]} 35. Rhd3 {[%clk 0:00:11.1]} 35...
g1=Q {[%clk 0:00:20.5]} 36. a4 {[%clk 0:00:11]} 36... Qh2 {[%clk 0:00:18.9]} 37.
Rc3 {[%clk 0:00:10.6]} 37... Qe5 {[%clk 0:00:18.9]} 38. Rc7 {[%clk 0:00:09.3]}
38... Rg3 {[%clk 0:00:16.7]} 0-1

[Event "*** SCC Grand Prix: Titled Tuesday Blitz"]
[Site "Chess.com"]
[Date "2020.07.14"]
[Round "6"]
[White "QuintilianoR"]
[Black "profofchess"]
[Result "1-0"]
[WhiteElo "2647"]
[BlackElo "2474"]
[TimeControl "180+1"]
[EndTime "11:07:14 PDT"]
[Termination "QuintilianoR won on time"]

1. e4 {[%clk 0:03:00.9]} 1... e6 {[%clk 0:03:00.1]} 2. d4 {[%clk 0:03:00.6]}
2... d5 {[%clk 0:03:00.7]} 3. Nd2 {[%clk 0:03:01.1]} 3... Nf6 {[%clk 0:03:00.5]}
4. e5 {[%clk 0:03:00.7]} 4... Nfd7 {[%clk 0:03:00.8]} 5. Bd3 {[%clk 0:03:01.4]}
5... c5 {[%clk 0:03:01.2]} 6. c3 {[%clk 0:03:02.1]} 6... Nc6 {[%clk 0:03:01.6]}
7. Ne2 {[%clk 0:03:02.8]} 7... cxd4 {[%clk 0:03:01.9]} 8. cxd4 {[%clk
0:03:02.9]} 8... f6 {[%clk 0:03:02.8]} 9. exf6 {[%clk 0:03:03.4]} 9... Nxf6
{[%clk 0:03:03.2]} 10. Nf3 {[%clk 0:03:03.9]} 10... Bd6 {[%clk 0:03:03.3]} 11.
O-O {[%clk 0:03:03.5]} 11... Qc7 {[%clk 0:03:02.5]} 12. Nc3 {[%clk 0:03:03.5]}
12... a6 {[%clk 0:03:02]} 13. Re1 {[%clk 0:03:03.9]} 13... O-O {[%clk
0:03:01.9]} 14. h3 {[%clk 0:03:04.4]} 14... Bd7 {[%clk 0:03:00.4]} 15. Bd2
{[%clk 0:03:01.5]} 15... Rae8 {[%clk 0:02:59]} 16. Rc1 {[%clk 0:03:01.7]} 16...
Re7 {[%clk 0:02:49.3]} 17. a3 {[%clk 0:02:56]} 17... Be8 {[%clk 0:02:42.6]} 18.
Ne5 {[%clk 0:02:20.3]} 18... Qb8 {[%clk 0:02:21.9]} 19. Nxc6 {[%clk 0:01:59.1]}
19... Bxc6 {[%clk 0:02:21.8]} 20. Bg5 {[%clk 0:01:56.9]} 20... Bd7 {[%clk
0:01:36.6]} 21. Na4 {[%clk 0:01:34.4]} 21... Bxa4 {[%clk 0:01:11.2]} 22. Qxa4
{[%clk 0:01:31.2]} 22... Bh2+ {[%clk 0:01:12.1]} 23. Kh1 {[%clk 0:01:30.4]}
23... Bf4 {[%clk 0:01:13]} 24. Bxf4 {[%clk 0:01:28.7]} 24... Qxf4 {[%clk
0:01:13.9]} 25. Rc2 {[%clk 0:01:23.4]} 25... Ne4 {[%clk 0:00:59]} 26. Bxe4
{[%clk 0:01:20.1]} 26... dxe4 {[%clk 0:00:59.9]} 27. Re3 {[%clk 0:01:13.1]}
27... Qh4 {[%clk 0:00:43.4]} 28. Qb4 {[%clk 0:00:41.9]} 28... Ref7 {[%clk
0:00:35.6]} 29. Qd6 {[%clk 0:00:39.3]} 29... Rxf2 {[%clk 0:00:30.4]} 30. Rxf2
{[%clk 0:00:35.3]} 30... Qxf2 {[%clk 0:00:29.8]} 31. Qxe6+ {[%clk 0:00:34]}
31... Kh8 {[%clk 0:00:29.6]} 32. Qxe4 {[%clk 0:00:33.7]} 32... Qxb2 {[%clk
0:00:27.2]} 33. Qe7 {[%clk 0:00:31.6]} 33... Qf2 {[%clk 0:00:11.7]} 34. Qe5
{[%clk 0:00:30.4]} 34... h6 {[%clk 0:00:08.8]} 35. Rg3 {[%clk 0:00:26.1]} 35...
Qf6 {[%clk 0:00:05.7]} 36. Qd5 {[%clk 0:00:25.2]} 36... Rd8 {[%clk 0:00:04.3]}
37. Qxb7 {[%clk 0:00:23.6]} 37... Rxd4 {[%clk 0:00:03.5]} 38. Kh2 {[%clk
0:00:20.3]} 38... Rd1 {[%clk 0:00:03]} 39. Qc8+ {[%clk 0:00:18.7]} 39... Kh7
{[%clk 0:00:02.8]} 40. Qc2+ {[%clk 0:00:18.7]} 1-0

[Event "*** SCC Grand Prix: Titled Tuesday Blitz"]
[Site "Chess.com"]
[Date "2020.07.14"]
[Round "6"]
[White "natelleka"]
[Black "sotochess"]
[Result "0-1"]
[WhiteElo "2131"]
[BlackElo "2438"]
[TimeControl "180+1"]
[EndTime "11:07:14 PDT"]
[Termination "sotochess won on time"]

1. e4 {[%clk 0:03:00.7]} 1... d5 {[%clk 0:02:56]} 2. exd5 {[%clk 0:03:00.6]}
2... Qxd5 {[%clk 0:02:53.8]} 3. Nc3 {[%clk 0:03:00.3]} 3... Qa5 {[%clk
0:02:50.6]} 4. Bc4 {[%clk 0:03:00.3]} 4... Nf6 {[%clk 0:02:48.9]} 5. d3 {[%clk
0:02:58.3]} 5... c6 {[%clk 0:02:48.6]} 6. Ne2 {[%clk 0:02:58]} 6... Bg4 {[%clk
0:02:40.4]} 7. O-O {[%clk 0:02:58]} 7... e6 {[%clk 0:02:39.2]} 8. f3 {[%clk
0:02:56.9]} 8... Bf5 {[%clk 0:02:37.9]} 9. Ng3 {[%clk 0:02:54]} 9... Bg6 {[%clk
0:02:36.9]} 10. f4 {[%clk 0:02:54.3]} 10... Nbd7 {[%clk 0:02:36]} 11. f5 {[%clk
0:02:48.6]} 11... exf5 {[%clk 0:02:33.6]} 12. Re1+ {[%clk 0:02:34.2]} 12... Kd8
{[%clk 0:02:32.7]} 13. Qe2 {[%clk 0:02:04.4]} 13... Bd6 {[%clk 0:02:25.8]} 14.
Bd2 {[%clk 0:01:37.7]} 14... Re8 {[%clk 0:02:20.7]} 15. Qf2 {[%clk 0:01:29.3]}
15... Qb6 {[%clk 0:02:05.5]} 16. Rxe8+ {[%clk 0:01:05.7]} 16... Kxe8 {[%clk
0:02:02.4]} 17. Re1+ {[%clk 0:01:01.6]} 17... Kf8 {[%clk 0:02:01.5]} 18. Be3
{[%clk 0:00:59.9]} 18... Qc7 {[%clk 0:01:57.3]} 19. Nxf5 {[%clk 0:00:47.1]}
19... Bxf5 {[%clk 0:01:29.4]} 20. Qxf5 {[%clk 0:00:45.3]} 20... Bxh2+ {[%clk
0:01:28.8]} 21. Kh1 {[%clk 0:00:44.4]} 21... Re8 {[%clk 0:01:25.2]} 22. Ne4
{[%clk 0:00:38.3]} 22... Be5 {[%clk 0:01:13.6]} 23. Ng5 {[%clk 0:00:29.9]} 23...
g6 {[%clk 0:01:07.6]} 24. Qf2 {[%clk 0:00:20]} 24... Re7 {[%clk 0:01:05.7]} 25.
Qh4 {[%clk 0:00:09.3]} 25... h5 {[%clk 0:00:57.3]} 26. Rf1 {[%clk 0:00:08.8]}
26... Qd6 {[%clk 0:00:43.5]} 27. c3 {[%clk 0:00:07.1]} 27... Kg7 {[%clk
0:00:41.3]} 28. d4 {[%clk 0:00:07]} 28... Bg3 {[%clk 0:00:41]} 29. Qh3 {[%clk
0:00:06.7]} 29... Rxe3 {[%clk 0:00:39.2]} 30. Nxf7 {[%clk 0:00:06.9]} 30... Qe7
{[%clk 0:00:37.5]} 31. Ne5 {[%clk 0:00:05.7]} 31... Nxe5 {[%clk 0:00:34.4]} 32.
dxe5 {[%clk 0:00:05.9]} 32... Qxe5 {[%clk 0:00:34.3]} 33. Qc8 {[%clk 0:00:05.7]}
33... Re1 {[%clk 0:00:30.9]} 34. Qxb7+ {[%clk 0:00:05.4]} 34... Kh6 {[%clk
0:00:30.4]} 35. Qxc6 {[%clk 0:00:03.3]} 35... Rxf1+ {[%clk 0:00:29.1]} 36. Bxf1
{[%clk 0:00:03.4]} 36... Qf4 {[%clk 0:00:29.4]} 37. Qb5 {[%clk 0:00:02.1]} 37...
Qh4+ {[%clk 0:00:28.5]} 0-1

[Event "*** SCC Grand Prix: Titled Tuesday Blitz"]
[Site "Chess.com"]
[Date "2020.07.14"]
[Round "6"]
[White "DrVitman"]
[Black "mirochka"]
[Result "0-1"]
[WhiteElo "2466"]
[BlackElo "2167"]
[TimeControl "180+1"]
[EndTime "11:07:14 PDT"]
[Termination "mirochka won on time"]

1. e4 {[%clk 0:02:52.4]} 1... c5 {[%clk 0:02:59.6]} 2. Nc3 {[%clk 0:02:51.2]}
2... Nc6 {[%clk 0:02:59.1]} 3. Bb5 {[%clk 0:02:50.5]} 3... g6 {[%clk 0:02:47.8]}
4. Bxc6 {[%clk 0:02:49.5]} 4... dxc6 {[%clk 0:02:46.5]} 5. d3 {[%clk 0:02:49.6]}
5... Bg7 {[%clk 0:02:46.5]} 6. f4 {[%clk 0:02:43.2]} 6... c4 {[%clk 0:02:32.3]}
7. Nf3 {[%clk 0:02:32.2]} 7... cxd3 {[%clk 0:02:32]} 8. cxd3 {[%clk 0:02:33.1]}
8... Bg4 {[%clk 0:02:28.5]} 9. Be3 {[%clk 0:02:24.8]} 9... e6 {[%clk 0:02:23.8]}
10. O-O {[%clk 0:02:12]} 10... Ne7 {[%clk 0:02:21.6]} 11. Qd2 {[%clk 0:02:08.5]}
11... O-O {[%clk 0:02:17.7]} 12. d4 {[%clk 0:02:00]} 12... Bxf3 {[%clk
0:02:16.5]} 13. Rxf3 {[%clk 0:01:55.2]} 13... Qa5 {[%clk 0:01:58.6]} 14. f5
{[%clk 0:01:29.1]} 14... exf5 {[%clk 0:01:56.2]} 15. exf5 {[%clk 0:01:28.3]}
15... Nxf5 {[%clk 0:01:52.6]} 16. b4 {[%clk 0:00:52.1]} 16... Qd8 {[%clk
0:01:43.2]} 17. Rd1 {[%clk 0:00:41.9]} 17... Nxe3 {[%clk 0:01:42]} 18. Qxe3
{[%clk 0:00:40.9]} 18... Qd7 {[%clk 0:01:30.7]} 19. Ne4 {[%clk 0:00:38]} 19...
Rae8 {[%clk 0:01:26]} 20. Qf4 {[%clk 0:00:29.4]} 20... f5 {[%clk 0:01:01.7]} 21.
Nc5 {[%clk 0:00:25.1]} 21... Qf7 {[%clk 0:00:55.5]} 22. Rfd3 {[%clk 0:00:19.5]}
22... Re2 {[%clk 0:00:46.6]} 23. d5 {[%clk 0:00:18.9]} 23... cxd5 {[%clk
0:00:28.3]} 24. Rxd5 {[%clk 0:00:19.8]} 24... Rfe8 {[%clk 0:00:27.8]} 25. Nd7
{[%clk 0:00:17]} 25... Re1+ {[%clk 0:00:21.9]} 26. Rxe1 {[%clk 0:00:16.7]} 26...
Rxe1+ {[%clk 0:00:20.6]} 27. Kf2 {[%clk 0:00:17.2]} 27... Qxd5 {[%clk
0:00:19.9]} 28. Qb8+ {[%clk 0:00:16.8]} 28... Kf7 {[%clk 0:00:18.8]} 29. Kxe1
{[%clk 0:00:10.8]} 29... Qxd7 {[%clk 0:00:18.3]} 30. Qf4 {[%clk 0:00:08.9]}
30... Bf6 {[%clk 0:00:16.9]} 31. Kf2 {[%clk 0:00:09.3]} 31... Qe7 {[%clk
0:00:16.5]} 32. h4 {[%clk 0:00:09.7]} 32... b6 {[%clk 0:00:16.3]} 33. Kf3 {[%clk
0:00:09.3]} 33... Qd7 {[%clk 0:00:16]} 34. Qc4+ {[%clk 0:00:09.5]} 34... Kg7
{[%clk 0:00:13.2]} 35. h5 {[%clk 0:00:05.8]} 35... Qd1+ {[%clk 0:00:12]} 36. Kg3
{[%clk 0:00:02]} 36... Qg4+ {[%clk 0:00:12.4]} 0-1

[Event "*** SCC Grand Prix: Titled Tuesday Blitz"]
[Site "Chess.com"]
[Date "2020.07.14"]
[Round "6"]
[White "AJSC02"]
[Black "KyrgyzFighter"]
[Result "0-1"]
[WhiteElo "2104"]
[BlackElo "2277"]
[TimeControl "180+1"]
[EndTime "11:07:14 PDT"]
[Termination "KyrgyzFighter won by checkmate"]

1. e4 {[%clk 0:03:00.9]} 1... d6 {[%clk 0:03:00]} 2. d4 {[%clk 0:03:00.6]} 2...
e5 {[%clk 0:02:59.6]} 3. dxe5 {[%clk 0:03:00.2]} 3... dxe5 {[%clk 0:03:00.2]} 4.
Qxd8+ {[%clk 0:03:01]} 4... Kxd8 {[%clk 0:03:01.1]} 5. Nf3 {[%clk 0:03:01.1]}
5... Bd6 {[%clk 0:02:57.8]} 6. Bc4 {[%clk 0:03:00.6]} 6... Ke7 {[%clk
0:02:47.1]} 7. Nc3 {[%clk 0:02:59.2]} 7... c6 {[%clk 0:02:47]} 8. h3 {[%clk
0:02:55.1]} 8... Nf6 {[%clk 0:02:47.1]} 9. Bg5 {[%clk 0:02:53.5]} 9... h6 {[%clk
0:02:45.3]} 10. Bh4 {[%clk 0:02:44.1]} 10... g5 {[%clk 0:02:41.7]} 11. Bg3
{[%clk 0:02:43.9]} 11... Nbd7 {[%clk 0:02:35.5]} 12. O-O-O {[%clk 0:02:32.5]}
12... b5 {[%clk 0:02:34.9]} 13. Bd3 {[%clk 0:02:05.9]} 13... Nh5 {[%clk
0:02:22.6]} 14. a4 {[%clk 0:02:00]} 14... Nxg3 {[%clk 0:02:21.3]} 15. fxg3
{[%clk 0:02:00.2]} 15... a6 {[%clk 0:02:07.3]} 16. Ne2 {[%clk 0:01:52.5]} 16...
Nc5 {[%clk 0:02:02.6]} 17. g4 {[%clk 0:01:50.6]} 17... Nxa4 {[%clk 0:02:00.8]}
18. Ng3 {[%clk 0:01:45.8]} 18... c5 {[%clk 0:02:01]} 19. Nf5+ {[%clk 0:01:42.9]}
19... Bxf5 {[%clk 0:02:00.9]} 20. exf5 {[%clk 0:01:43.1]} 20... c4 {[%clk
0:01:53.6]} 21. Be4 {[%clk 0:01:42.5]} 21... Rab8 {[%clk 0:01:51.1]} 22. f6+
{[%clk 0:01:25.6]} 22... Kd7 {[%clk 0:01:31.4]} 23. Nxe5+ {[%clk 0:01:18.1]}
23... Ke6 {[%clk 0:01:31.8]} 24. Nc6 {[%clk 0:00:32]} 24... Bf4+ {[%clk
0:01:30]} 25. Kb1 {[%clk 0:00:31.8]} 25... Rb6 {[%clk 0:01:18.7]} 26. Rhf1
{[%clk 0:00:20.4]} 26... Nc5 {[%clk 0:01:15.8]} 27. Nd4+ {[%clk 0:00:18.8]}
27... Kxf6 {[%clk 0:01:14.2]} 28. Bd5 {[%clk 0:00:15.8]} 28... Kg6 {[%clk
0:01:08]} 29. g3 {[%clk 0:00:15.8]} 29... Bxg3 {[%clk 0:01:08.3]} 30. Rxf7
{[%clk 0:00:15.7]} 30... Rd8 {[%clk 0:01:05.3]} 31. Rf5 {[%clk 0:00:10.7]} 31...
Rbd6 {[%clk 0:01:02.2]} 32. Bf7+ {[%clk 0:00:09.9]} 32... Kg7 {[%clk 0:01:00]}
33. c3 {[%clk 0:00:09]} 33... Kh8 {[%clk 0:00:46.1]} 34. Rdf1 {[%clk 0:00:08.7]}
34... Ne4 {[%clk 0:00:40.2]} 35. Kc2 {[%clk 0:00:04.8]} 35... b4 {[%clk
0:00:39.9]} 36. cxb4 {[%clk 0:00:03]} 36... Rxd4 {[%clk 0:00:39.3]} 37. Bh5
{[%clk 0:00:02.4]} 37... Rd2+ {[%clk 0:00:38.9]} 38. Kc1 {[%clk 0:00:02.4]}
38... c3 {[%clk 0:00:36.2]} 39. Rf8+ {[%clk 0:00:02.2]} 39... Rxf8 {[%clk
0:00:35.4]} 40. Rxf8+ {[%clk 0:00:03.1]} 40... Kg7 {[%clk 0:00:36.1]} 41. Rf7+
{[%clk 0:00:03.4]} 41... Kg8 {[%clk 0:00:36.7]} 42. Re7 {[%clk 0:00:03.7]} 42...
cxb2+ {[%clk 0:00:36.3]} 43. Kb1 {[%clk 0:00:02.4]} 43... Nc3# {[%clk
0:00:36.9]} 0-1

[Event "*** SCC Grand Prix: Titled Tuesday Blitz"]
[Site "Chess.com"]
[Date "2020.07.14"]
[Round "6"]
[White "Jbd735"]
[Black "Ranindu2003"]
[Result "0-1"]
[WhiteElo "2451"]
[BlackElo "2613"]
[TimeControl "180+1"]
[EndTime "11:07:15 PDT"]
[Termination "Ranindu2003 won on time"]

1. e4 {[%clk 0:03:00.9]} 1... g6 {[%clk 0:02:59.5]} 2. d4 {[%clk 0:03:00.8]}
2... Bg7 {[%clk 0:02:59.7]} 3. Nc3 {[%clk 0:03:01]} 3... d6 {[%clk 0:03:00]} 4.
Be3 {[%clk 0:03:01.1]} 4... a6 {[%clk 0:03:00.1]} 5. a4 {[%clk 0:03:00]} 5... b6
{[%clk 0:02:58.9]} 6. Nf3 {[%clk 0:02:58.9]} 6... Bb7 {[%clk 0:02:59]} 7. Bc4
{[%clk 0:02:55.7]} 7... e6 {[%clk 0:02:58.3]} 8. Qe2 {[%clk 0:02:53.4]} 8... Nd7
{[%clk 0:02:57.8]} 9. O-O {[%clk 0:02:47.6]} 9... h6 {[%clk 0:02:57.7]} 10. Rfd1
{[%clk 0:02:40.3]} 10... Ne7 {[%clk 0:02:57.6]} 11. Bf4 {[%clk 0:02:32.6]} 11...
g5 {[%clk 0:02:55]} 12. Bg3 {[%clk 0:02:28.1]} 12... Ng6 {[%clk 0:02:54.6]} 13.
Qe3 {[%clk 0:02:16.6]} 13... Qe7 {[%clk 0:02:50.6]} 14. Re1 {[%clk 0:02:11.6]}
14... g4 {[%clk 0:02:47.1]} 15. Nd2 {[%clk 0:02:08.7]} 15... h5 {[%clk
0:02:47.4]} 16. f4 {[%clk 0:02:00.4]} 16... c5 {[%clk 0:02:31.7]} 17. Nb3 {[%clk
0:01:48.9]} 17... Rc8 {[%clk 0:01:43.1]} 18. d5 {[%clk 0:01:41.8]} 18... h4
{[%clk 0:01:35]} 19. Bf2 {[%clk 0:01:26]} 19... e5 {[%clk 0:01:31.3]} 20. f5
{[%clk 0:01:06.5]} 20... Nf4 {[%clk 0:01:30.2]} 21. Ne2 {[%clk 0:01:04.2]} 21...
Bh6 {[%clk 0:01:27.3]} 22. Nxf4 {[%clk 0:00:58.9]} 22... exf4 {[%clk 0:01:26.6]}
23. Qc3 {[%clk 0:00:57.8]} 23... Ne5 {[%clk 0:01:25.6]} 24. Rf1 {[%clk
0:00:47.2]} 24... Bg7 {[%clk 0:01:19.3]} 25. Kh1 {[%clk 0:00:38.8]} 25... g3
{[%clk 0:01:13.8]} 26. Bg1 {[%clk 0:00:37.2]} 26... h3 {[%clk 0:01:11.5]} 27.
hxg3 {[%clk 0:00:30]} 27... Qg5 {[%clk 0:00:52.6]} 28. Rxf4 {[%clk 0:00:18.6]}
28... hxg2+ {[%clk 0:00:51.3]} 29. Kxg2 {[%clk 0:00:18.4]} 29... Ng4 {[%clk
0:00:51.3]} 30. Qf3 {[%clk 0:00:10.8]} 30... Ne5 {[%clk 0:00:48]} 31. Qe2 {[%clk
0:00:10.9]} 31... Rg8 {[%clk 0:00:42.5]} 32. Bxa6 {[%clk 0:00:10]} 32... Bh6
{[%clk 0:00:30.3]} 33. Bb5+ {[%clk 0:00:07.6]} 33... Kf8 {[%clk 0:00:28.5]} 34.
Bh2 {[%clk 0:00:01.3]} 34... Qxf4 {[%clk 0:00:26.1]} 35. Qh5 {[%clk 0:00:01.1]}
35... Qxe4+ {[%clk 0:00:18.4]} 0-1